bitfinex-derivatives/quotes_SOLF0:USTF0_20241024
["timestamp","ask_amount","ask_price","bid_price","bid_amount"]
[1729750817576,2.8738,174.15,174.1,8.23389571]
[1729750817979,2.8738,174.15,174.11,1.43780537]
[1729750818168,2.8738,174.15,174.1,8.23389571]
[1729750818372,2.8738,174.15,174.11,1.43779715]
[1729750818578,2.874,174.14,174.11,1.14965]
[1729750818778,9.95824571,174.14,174.11,1.14965]
[1729750819482,2.8742,174.13,174.11,1.14965]
[1729750819983,7.08424571,174.14,174.11,1.14965]
[1729750820178,2.8743,174.12,174.1,1.10015]
[1729750820372,2.8743,174.12,174.08,11.05929571]
[1729750820573,2.8743,174.12,174.08,8.18439571]
[1729750820772,7.08424571,174.13,174.08,1.10015]
[1729750820973,4.1,174.15,174.07,1.14926]
[1729750820974,7.08424571,174.11,174.07,1.14926]
[1729750821279,7.08424571,174.09,174.07,1.14926]
[1729750821471,7.08424571,174.08,174.05,1.14926]
[1729750821871,9.95914571,174.09,174.05,1.14926]
[1729750823677,2.8749,174.09,174.05,1.14926]
[1729750826880,2.875,174.08,174.05,1.14926]
[1729750827082,2.875,174.08,174.05,1.10018]
[1729750828280,2.875,174.08,174.04,7.08424571]
[1729750828583,2.875,174.08,174.05,2.8754]
[1729750828771,7.08424571,174.09,174.04,1.10018]
[1729750828974,2.8753,174.06,174.04,1.14945]
[1729750829173,2.8753,174.06,174.02,9.96004571]
[1729750829378,2.8753,174.06,174.03,1.43823379]
[1729750829585,2.8753,174.06,174.02,8.18439571]
[1729750829780,2.8753,174.06,174.03,4.3139441]
[1729750829981,2.8753,174.06,174.03,2.8757]
[1729750830587,2.8753,174.06,174.03,3.97585]
[1729750833284,2.8755,174.05,174.03,1.10015]
[1729750833786,2.8755,174.05,174.03,1.14968]
[1729750834285,2.8755,174.05,174.03,1.10018]
[1729750835690,9.95984571,174.04,174.03,1.10018]
[1729750835886,9.95984571,174.04,174.02,1.10018]
[1729750835887,7.08424571,174.04,174.02,1.10018]
[1729750836094,7.08424571,174.04,174.02,1.14995]
[1729750836389,2.8759,174.03,174.02,1.14995]
[1729750836691,2.8763,174.0,173.99,1.10025]
[1729750836891,2.8763,174.0,173.99,1.43863834]
[1729750837891,9.96034571,174.01,173.99,1.43863834]
[1729750838092,9.96034571,174.01,173.99,1.10012]
[1729750838790,9.96034571,174.01,173.98,2.8765]
[1729750838996,4.1,174.03,174.01,2.8761]
[1729750839295,4.1,174.03,174.0,7.08424571]
[1729750839483,4.1,174.03,174.01,1.43851409]
[1729750839685,4.1,174.03,174.01,1.10012]
[1729750839887,6.9759,174.03,174.01,1.10012]
[1729750840386,4.1,174.03,174.01,3.97612]
[1729750840586,4.1,174.03,174.01,1.10012]
[1729750841085,4.1,174.04,174.02,1.43847109]
[1729750841286,4.1,174.05,174.03,1.43847109]
[1729750841486,4.1,174.08,174.06,2.8751]
[1729750841687,4.1,174.08,174.06,11.05946571]
[1729750842189,4.1,174.08,174.06,8.18436571]
[1729750842386,1.2817,174.1,174.06,8.18436571]
[1729750842690,4.1,174.09,174.06,8.18436571]
[1729750842988,7.08424571,174.08,174.05,1.10012]
[1729750843186,7.08424571,174.07,174.01,7.08424571]
[1729750843495,2.8755,174.05,174.02,3.73954889]
[1729750843788,6.9755,174.05,174.03,3.73954889]
[1729750843990,6.9755,174.05,174.04,1.43828803]
[1729750846197,6.9755,174.05,174.03,1.10012]
[1729750846487,6.9755,174.05,173.94,2.4322]
[1729750846488,11.18424571,174.05,174.04,1.43835009]
[1729750846693,11.18424571,174.05,173.98,7.08424571]
[1729750846890,2.876,174.02,173.99,8.98901624]
[1729750847193,2.876,174.02,174.0,3.74010055]
[1729750847394,2.876,174.02,174.01,1.43850021]
[1729750848891,2.876,174.02,174.01,3.74012442]
[1729750850089,2.8759,174.03,173.99,2.8764]
[1729750850296,2.8759,174.03,174.0,3.74009592]
[1729750850495,2.8759,174.03,174.01,1.43849843]
[1729750850697,2.8759,174.03,174.02,1.43849843]
[1729750852999,2.8759,174.03,174.02,2.53864843]
[1729750853797,2.8759,174.03,174.02,1.43849843]
[1729750855603,9.96014571,174.03,174.02,1.43849843]
[1729750857603,9.96014571,174.03,174.0,1.10015]
[1729750857604,2.8761,174.01,174.0,1.10015]
[1729750857804,2.8761,174.01,174.0,4.8403612]
[1729750860907,2.8761,174.01,174.0,4.84041876]
[1729750861106,2.8761,174.01,174.0,3.74026876]
[1729750861309,2.8761,174.01,174.0,1.43856491]
[1729750862013,2.8764,173.99,173.96,2.8769]
[1729750862202,2.8764,173.99,173.97,9.00113759]
[1729750862405,2.8764,173.99,173.98,3.74047102]
[1729750863006,2.8757,174.04,174.0,2.8762]
[1729750863202,4.1,174.03,174.01,1.43850304]
[1729750863517,1.2362,174.09,174.02,8.52274875]
[1729750863805,1.2362,174.09,174.05,7.08424571]
[1729750863806,4.1,174.09,174.05,7.08424571]
[1729750864000,4.1,174.09,174.04,7.08424571]
[1729750864202,4.1,174.09,174.03,1.10028]
[1729750864203,2.8754,174.05,174.03,1.10028]
[1729750864410,4.1,174.05,174.04,1.43834225]
[1729750864710,6.9754,174.05,174.04,1.43834225]
[1729750867507,2.8756,174.04,174.02,1.10012]
[1729750867712,2.8756,174.04,174.03,3.73974273]
[1729750868312,4.1,174.05,174.03,3.73974273]
[1729750868513,6.9755,174.05,174.04,1.43836259]
[1729750871210,4.1,174.05,174.02,1.10012]
[1729750871413,2.8757,174.03,174.02,1.10012]
[1729750871613,2.8757,174.03,174.02,4.83986207]
[1729750873319,2.8757,174.03,174.02,3.73974207]
[1729750873504,9.95994571,174.03,174.02,3.73974207]
[1729750873816,7.08424571,174.03,173.98,1.10012]
[1729750874012,7.08424571,174.0,173.99,2.30169955]
[1729750874211,11.18424571,174.0,173.99,2.30169955]
[1729750875213,11.18424571,174.0,173.95,7.08424571]
[1729750875214,14.06064571,174.0,173.98,1.10015]
[1729750875412,14.06064571,174.0,173.96,2.8768]
[1729750875620,14.06064571,174.0,173.97,7.56084386]
[1729750875820,14.06064571,174.0,173.98,2.30191601]
[1729750876114,14.06064571,174.0,173.96,3.97695]
[1729750876315,14.06064571,174.0,173.97,7.56052336]
[1729750876514,14.06064571,174.0,173.98,2.30191531]
[1729750876716,14.06064571,174.0,173.96,3.97695]
[1729750877014,14.06064571,174.0,173.97,7.56001699]
[1729750877214,14.06064571,174.0,173.98,2.30189222]
[1729750877417,14.06064571,174.0,173.97,1.10015]
[1729750877613,14.06064571,174.0,173.98,2.30191531]
[1729750877817,14.06064571,174.0,173.97,1.10015]
[1729750878110,14.06064571,174.0,173.98,2.30191531]
[1729750878311,14.06064571,174.0,173.97,1.10015]
[1729750878511,14.06064571,174.0,173.98,2.30189458]
[1729750878708,14.06064571,174.0,173.98,1.10015]
[1729750879917,2.8764,173.99,173.98,1.10015]
[1729750880112,2.8764,173.99,173.98,3.40206531]
[1729750881712,7.08424571,173.99,173.96,1.10015]
[1729750881920,7.08424571,173.99,173.95,1.15015]
[1729750882119,7.08424571,173.99,173.96,2.3020179]
[1729750882316,7.08424571,173.99,173.95,1.15015]
[1729750882317,2.8767,173.98,173.93,7.08424571]
[1729750882517,2.8767,173.98,173.94,7.55616701]
[1729750882817,2.8767,173.98,173.95,7.55616701]
[1729750883023,2.8767,173.98,173.96,2.30202826]
[1729750883314,2.8767,173.97,173.94,3.97732]
[1729750883522,2.8767,173.97,173.95,7.55609535]
[1729750883822,2.8767,173.97,173.94,3.97732]
[1729750883823,2.8767,173.97,173.96,2.30203424]
[1729750884024,2.8767,173.97,173.96,3.40215424]
[1729750885823,2.8767,173.97,173.96,4.84092688]
[1729750886924,2.8767,173.97,173.96,1.10012]
[1729750887120,2.8767,173.97,173.96,4.84092886]
[1729750887320,2.8767,173.97,173.96,1.10012]
[1729750887528,2.8767,173.97,173.96,4.84092886]
[1729750889521,4.1,173.98,173.96,17.18269816]
[1729750889722,4.1,173.98,173.97,3.74080886]
[1729750890327,6.9766,173.98,173.97,4.84092886]
[1729750890821,6.9766,173.98,173.97,1.10012]
[1729750891019,6.9766,173.98,173.97,4.84088178]
[1729750893727,4.1,174.0,173.97,11.06096571]
[1729750894024,4.1,174.0,173.98,3.74072193]
[1729750894224,6.9762,174.0,173.99,1.4387392]
[1729750894626,14.06044571,174.0,173.99,1.4387392]
[1729750895327,6.9762,174.0,173.99,1.4387392]
[1729750895526,4.1,174.0,173.99,1.4387392]
[1729750895730,4.1,174.0,173.99,8.52298491]
[1729750896024,4.1,174.0,173.99,11.92506103]
[1729750896419,2.8758,174.03,173.99,11.92506103]
[1729750896633,4.1,174.02,174.0,10.82466331]
[1729750896821,4.1,174.02,174.01,3.74041571]
[1729750897021,4.1,174.02,174.01,4.84053571]
[1729750897828,11.18424571,174.02,174.01,3.74041571]
[1729750898825,4.1,174.02,174.01,3.74041571]
[1729750899217,6.9759,174.02,174.01,3.74041571]
[1729750901723,14.06014571,174.02,174.01,3.74041571]
[1729750902026,14.06014571,174.02,173.98,3.97655]
[1729750902229,14.06014571,174.02,173.99,6.70137171]
[1729750902431,14.06014571,174.02,174.0,3.74036469]
[1729750902628,14.06014571,174.02,174.01,1.4386017]
[1729750903540,2.8767,173.98,173.95,1.10009]
[1729750903739,2.8767,173.98,173.96,9.00656928]
[1729750903740,14.06094571,173.98,173.96,9.00656928]
[1729750904039,14.06094571,173.98,173.97,9.00656928]
[1729750905631,14.06094571,173.98,173.97,3.74076597]
[1729750908040,6.9767,173.98,173.97,3.74076597]
[1729750909448,6.9767,173.98,173.95,1.10006]
[1729750909449,2.8768,173.97,173.95,1.10006]
[1729750909632,2.8768,173.97,173.96,2.30212012]
[1729750909842,2.8768,173.97,173.96,3.74094519]
[1729750911139,6.9768,173.97,173.96,3.74094519]
[1729750911535,6.9768,173.97,173.96,9.00257252]
[1729750911733,4.1,173.97,173.96,9.00257252]
[1729750912738,2.8767,173.98,173.96,9.00257252]
[1729750913042,2.8767,173.98,173.88,4.1]
[1729750913043,4.1,173.98,173.97,16.08713517]
[1729750913244,4.1,173.98,173.97,7.08424571]
[1729750913540,4.1,173.98,173.97,18.96297802]
[1729750913846,4.1,173.98,173.97,20.06303802]
[1729750914436,4.1,173.98,173.97,10.10209231]
[1729750914636,4.1,173.98,173.97,9.00203231]
[1729750915145,6.9766,173.98,173.97,9.00203231]
[1729750915541,6.9766,173.98,173.97,3.7405837]
[1729750915740,6.9766,173.98,173.97,4.8407337]
[1729750916537,6.9766,173.98,173.97,10.10228137]
[1729750916734,6.9766,173.98,173.95,1.10015]
[1729750917041,2.8767,173.97,173.96,9.00276096]
[1729750917243,4.1,173.98,173.96,9.00276096]
[1729750917440,4.1,173.98,173.97,3.74089038]
[1729750918340,6.9766,173.98,173.97,3.74089038]
[1729750920145,4.1,173.98,173.97,3.74089038]
[1729750920745,4.1,173.98,173.97,16.08569249]
[1729750920939,4.1,173.98,173.97,11.97512296]
[1729750921147,4.1,173.98,173.97,17.23564685]
[1729750921941,4.1,173.98,173.97,10.15140114]
[1729750922344,4.1,173.98,173.97,13.02810114]
[1729750922541,4.1,173.99,173.97,17.23564685]
[1729750922745,4.1,173.99,173.98,9.00125114]
[1729750923251,4.1,173.99,173.98,6.410022]
[1729750923451,4.1,173.99,173.98,10.15034519]
[1729750925058,6.9764,173.99,173.98,9.00019519]
[1729750925449,6.9764,173.99,173.98,3.74032319]
[1729750925851,6.9764,173.99,173.98,1.43858584]
[1729750926954,2.8769,173.96,173.95,1.10012]
[1729750927254,2.8769,173.96,173.95,10.10218624]
[1729750927453,2.8766,173.99,173.95,20.06343195]
[1729750927655,4.1,173.98,173.96,9.00209624]
[1729750927851,4.1,173.98,173.97,9.00209624]
[1729750928048,4.1,173.98,173.97,6.36103075]
[1729750928359,4.1,173.98,173.97,17.18603338]
[1729750930050,4.1,173.98,173.97,10.10178767]
[1729750930356,14.06084571,173.98,173.97,3.74075692]
[1729750930749,14.06084571,173.98,173.93,7.08424571]
[1729750930750,2.8768,173.97,173.93,11.06163571]
[1729750930949,2.8768,173.97,173.94,9.00162123]
[1729750931149,2.8768,173.97,173.95,5.26042624]
[1729750931360,2.8768,173.97,173.96,3.74119499]
[1729750931851,6.9766,173.98,173.96,3.74119499]
[1729750932053,6.9766,173.98,173.97,1.43892115]
[1729750933061,14.06084571,173.98,173.97,1.43892115]
[1729750933459,4.1,173.98,173.97,1.43892115]
[1729750933660,4.1,173.98,173.97,3.74097915]
[1729750934864,11.18424571,173.98,173.97,3.74081055]
[1729750935465,14.06084571,173.98,173.97,3.74081055]
[1729750936063,14.06084571,173.98,173.97,1.43877329]
[1729750936257,2.8771,173.96,173.92,1.10009]
[1729750936461,7.08424571,173.96,173.93,9.0053189]
[1729750936652,7.08424571,173.96,173.94,9.0053189]
[1729750936856,7.08424571,173.96,173.95,9.0053189]
[1729750937356,9.96114571,173.96,173.95,9.00578431]
[1729750938865,2.8772,173.95,173.93,1.09996]
[1729750939165,4.1,173.94,173.93,1.09996]
[1729750939364,4.1,173.94,173.93,9.00595043]
[1729750939563,4.1,173.94,173.93,10.10591043]
[1729750940665,6.9772,173.94,173.93,10.10591043]
[1729750941262,6.9772,173.94,173.93,9.00595043]
[1729750941965,6.9772,173.94,173.93,10.10591043]
[1729750943066,6.9772,173.94,173.93,9.00894955]
[1729750943067,14.06144571,173.94,173.93,9.00894955]
[1729750943258,14.06144571,173.94,173.93,3.74127712]
[1729750943462,6.9772,173.94,173.93,9.01056568]
[1729750944766,14.06144571,173.94,173.93,9.01056568]
[1729750944969,9.96144571,173.94,173.93,9.01056568]
[1729750945166,14.06144571,173.94,173.93,9.01056568]
[1729750946072,6.9772,173.94,173.93,9.01056568]
[1729750946271,14.06144571,173.94,173.93,9.01056568]
[1729750946768,2.8776,173.92,173.9,1.09984]
[1729750946964,2.8776,173.92,173.91,9.00849408]
[1729750947273,9.96184571,173.92,173.91,9.00849408]
[1729750949970,2.8776,173.92,173.91,9.00849408]
[1729750950169,9.96184571,173.92,173.91,9.00849408]
[1729750950669,7.08424571,173.92,173.9,1.09977]
[1729750950862,4.1,173.91,173.9,1.09977]
[1729750951063,11.18424571,173.91,173.9,10.1081973]
[1729750951268,4.1,173.91,173.9,10.1081973]
[1729750953372,11.18424571,173.91,173.9,10.1081973]
[1729750953569,11.18424571,173.91,173.9,9.0084273]
[1729750953972,11.18424571,173.91,173.88,1.09971]
[1729750953973,14.06214571,173.91,173.88,1.09971]
[1729750954272,7.08424571,173.89,173.88,1.09971]
[1729750954578,7.08424571,173.89,173.88,10.1071736]
[1729750954772,7.08424571,173.89,173.88,6.36539619]
[1729750954978,7.08424571,173.89,173.88,10.10716977]
[1729750955176,9.96234571,173.89,173.88,1.09971]
[1729750955376,9.96234571,173.89,173.88,9.0093545]
[1729750955777,9.96234571,173.89,173.88,10.1094445]
[1729750956174,9.96234571,173.89,173.88,9.0093545]
[1729750956382,9.96234571,173.89,173.88,3.74212152]
[1729750957079,9.96234571,173.89,173.88,1.43927751]
[1729750957684,2.879,173.84,173.83,1.15094]
[1729750957875,11.18424571,173.84,173.83,7.57087894]
[1729750958378,11.18424571,173.84,173.79,1.15124]
[1729750958570,7.08424571,173.81,173.79,1.15124]
[1729750958770,4.1,173.8,173.79,1.15124]
[1729750959074,4.1,173.8,173.79,8.7225223]
[1729750962476,4.1,173.8,173.79,6.41863696]
[1729750962673,4.1,173.8,173.79,11.60222502]
[1729750962983,4.1,173.8,173.79,8.72252502]
[1729750963383,4.1,173.8,173.79,1.15124]
[1729750963583,4.1,173.8,173.79,6.41863696]
[1729750963783,4.1,173.8,173.79,1.15124]
[1729750963972,4.1,173.8,173.79,6.41863696]
[1729750964177,11.18424571,173.8,173.79,1.15124]
[1729750964373,11.18424571,173.8,173.79,4.03094]
[1729750964779,4.1,173.8,173.79,4.03094]
[1729750965081,11.18424571,173.8,173.79,4.03094]
[1729750966086,11.18424571,173.8,173.79,3.97985]
[1729750967686,11.18424571,173.8,173.79,1.10015]
[1729750967883,4.1,173.8,173.79,1.10015]
[1729750968089,11.18424571,173.8,173.79,1.10015]
[1729750968688,7.08424571,173.8,173.79,1.10015]
[1729750968887,4.1,173.8,173.79,1.10015]
[1729750969189,11.18424571,173.8,173.79,1.10015]
[1729750969486,7.08424571,173.8,173.79,1.10015]
[1729750969787,11.18424571,173.8,173.79,2.54007904]
[1729750970184,11.18424571,173.8,173.79,1.10015]
[1729750970385,11.18424571,173.8,173.79,2.54007207]
[1729750970585,11.18424571,173.8,173.79,1.10015]
[1729750973492,11.18424571,173.8,173.79,3.97985]
[1729750973787,3.7683,173.9,173.79,3.97985]
[1729750973788,4.1,173.81,173.79,1.10015]
[1729750973989,4.1,173.81,173.8,2.8796]
[1729750974388,4.1,173.81,173.8,3.97978]
[1729750982489,7.08424571,173.82,173.8,3.97978]
[1729750982690,4.1,173.81,173.8,3.97978]
[1729750985990,4.1,173.81,173.8,1.10018]
[1729750986186,6.9794,173.81,173.78,1.10018]
[1729750986394,7.08424571,173.79,173.76,1.10012]
[1729750986596,2.8796,173.8,173.77,2.8799]
[1729750986797,7.08424571,173.78,173.77,2.8799]
[1729750986996,7.08424571,173.78,173.77,4.03117]
[1729750987392,7.08424571,173.78,173.77,3.97996]
[1729750988697,9.96414571,173.78,173.76,1.10006]
[1729750988891,11.18424571,173.77,173.76,1.15164]
[1729750989296,4.1,173.77,173.75,1.15164]
[1729750989491,6.9802,173.77,173.72,1.15164]
[1729750989694,7.08424571,173.74,173.72,1.10012]
[1729750989904,4.1,173.77,173.72,1.10012]
[1729750989905,2.8805,173.75,173.72,4.03254]
[1729750990201,7.08424571,173.73,173.72,3.98112]
[1729750990392,11.18424571,173.73,173.72,4.0326]
[1729750990596,14.06494571,173.73,173.71,1.1517]
[1729750990898,7.08424571,173.71,173.7,1.10022]
[1729750991500,7.08424571,173.71,173.7,1.1519]
[1729750991893,4.1,173.73,173.7,1.1519]
[1729750992097,11.18424571,173.73,173.7,1.1519]
[1729750993006,11.18424571,173.73,173.71,2.881]
[1729750993199,11.18424571,173.73,173.71,4.0329]
[1729750993808,7.08424571,173.72,173.71,1.1519]
[1729750995006,3.7615,173.84,173.71,8.23614571]
[1729750995300,3.7615,173.84,173.73,7.08424571]
[1729750995301,7.08424571,173.78,173.73,7.08424571]
[1729750995505,4.1,173.77,173.73,7.08424571]
[1729750995704,7.08424571,173.78,173.73,7.08424571]
[1729750995904,4.1,173.78,173.75,7.08424571]
[1729750996095,7.08424571,173.8,173.75,7.08424571]
[1729750996300,4.1,173.79,173.77,2.8801]
[1729750997313,4.1,173.79,173.77,4.032]
[1729751001406,4.1,173.78,173.77,4.032]
[1729751001605,6.9799,173.78,173.77,1.1519]
[1729751001810,14.06414571,173.78,173.75,1.10019]
[1729751002005,14.06414571,173.78,173.72,7.08424571]
[1729751002207,14.06414571,173.78,173.72,8.5244935]
[1729751002503,7.08424571,173.76,173.71,8.5244935]
[1729751002706,7.08424571,173.76,173.71,7.08424571]
[1729751002912,7.08424571,173.76,173.72,1.4402788]
[1729751003110,3.7615,173.84,173.68,7.55071508]
[1729751003111,3.7615,173.84,173.74,7.08424571]
[1729751003411,7.08424571,173.81,173.75,7.08424571]
[1729751003600,4.1,173.8,173.77,7.08424571]
[1729751004006,7.08424571,173.83,173.77,7.08424571]
[1729751004208,9.96344571,173.83,173.8,2.8794]
[1729751004410,4.1,173.82,173.8,2.8794]
[1729751005708,11.17454571,173.84,173.81,2.8794]
[1729751006010,11.18424571,173.82,173.77,7.08424571]
[1729751006401,11.18424571,173.82,173.77,8.52452451]
[1729751006602,4.1,173.82,173.78,7.08424571]
[1729751007010,4.1,173.82,173.8,2.8794]
[1729751007604,4.1,173.82,173.8,3.97974]
[1729751008413,4.1,173.82,173.81,2.8794]
[1729751008814,4.1,173.82,173.81,3.97974]
[1729751010211,11.17454571,173.84,173.81,3.97974]
[1729751010511,11.18424571,173.82,173.81,3.97974]
[1729751011611,11.18424571,173.82,173.81,1.10034]
[1729751012422,11.18424571,173.82,173.8,1.10003]
[1729751012722,7.08424571,173.8,173.78,1.440091]
[1729751012912,7.08424571,173.8,173.77,4.03114]
[1729751013111,7.08424571,173.8,173.78,1.4400914]
[1729751013415,9.96384571,173.8,173.77,9.23854813]
[1729751013719,7.08424571,173.79,173.77,3.98003]
[1729751013910,4.1,173.78,173.77,3.98003]
[1729751014110,4.1,173.78,173.77,5.42015031]
[1729751014310,4.1,173.78,173.76,1.10003]
[1729751014511,4.1,173.78,173.77,1.44011381]
[1729751014512,6.98,173.78,173.77,1.44011381]
[1729751014717,7.08424571,173.77,173.75,9.29189494]
[1729751014909,7.08424571,173.77,173.75,9.24054494]
[1729751015313,7.08424571,173.77,173.75,6.36014494]
[1729751015512,7.08424571,173.77,173.75,1.10009]
[1729751016212,7.08424571,173.77,173.73,1.10009]
[1729751016410,7.08424571,173.74,173.73,2.30457359]
[1729751016609,11.18424571,173.74,173.71,7.57243949]
[1729751016812,11.18424571,173.74,173.71,3.45631359]
[1729751016813,7.08424571,173.72,173.71,3.45631359]
[1729751017113,7.08424571,173.72,173.71,10.11322272]
[1729751017420,7.08424571,173.72,173.71,2.54078392]
[1729751017620,7.08424571,173.72,173.71,1.44059392]
[1729751017821,7.08424571,173.72,173.7,1.10012]
[1729751018009,7.08424571,173.72,173.71,1.44062178]
[1729751018618,4.1,173.73,173.71,2.54074178]
[1729751018816,4.1,173.73,173.72,4.32152178]
[1729751019208,4.1,173.73,173.72,5.42164178]
[1729751020218,7.08424571,173.74,173.72,5.42164178]
[1729751020420,4.1,173.73,173.72,3.98102]
[1729751020723,4.1,173.73,173.72,5.42162481]
[1729751021624,4.1,173.73,173.72,3.98102]
[1729751021823,4.1,173.73,173.72,10.69349843]
[1729751022123,4.1,173.73,173.72,3.98102]
[1729751022326,4.1,173.73,173.72,10.69349843]
[1729751023817,12.28318671,173.76,173.72,7.81259843]
[1729751023818,11.06108671,173.76,173.72,7.81259843]
[1729751024121,108.3761647,174.17,173.73,6.71247843]
[1729751024122,4.1,173.75,173.73,6.71247843]
[1729751024324,4.1,173.75,173.74,6.71247843]
[1729751024530,4.1,173.75,173.74,7.81259843]
[1729751025122,6.9804,173.75,173.74,6.71247843]
[1729751025518,18.04148671,173.75,173.72,1.10012]
[1729751025717,18.04148671,173.75,173.73,6.71969977]
[1729751026018,18.04148671,173.75,173.74,1.44052774]
[1729751027723,15.16108671,173.75,173.74,1.44052774]
[1729751028724,2.8802,173.77,173.74,4.32102774]
[1729751029025,4.1,173.76,173.74,2.8805]
[1729751029221,4.1,173.76,173.73,1.10006]
[1729751029414,4.1,173.76,173.75,2.8804]
[1729751030023,4.1,173.76,173.75,4.32086417]
[1729751030221,4.1,173.76,173.75,5.42092417]
[1729751031928,11.06108671,173.78,173.77,2.8801]
[1729751032228,11.06108671,173.78,173.75,2.54052417]
[1729751032229,15.16108671,173.78,173.75,1.10006]
[1729751032525,15.16108671,173.78,173.76,9.59836351]
[1729751032725,15.16108671,173.78,173.76,3.98026]
[1729751035122,15.16108671,173.78,173.77,1.44034673]
[1729751035826,2.8792,173.83,173.79,2.8796]
[1729751036020,4.1,173.82,173.79,1.10006]
[1729751037322,4.1,173.82,173.8,4.31957583]
[1729751037527,5.2522,173.84,173.73,2.404]
[1729751037833,4.1,173.83,173.74,6.71589775]
[1729751038134,4.1,173.83,173.8,2.8794]
[1729751038829,4.1,173.83,173.8,3.97946]
[1729751040333,11.17866648,173.83,173.8,3.97946]
[1729751041334,11.17866648,173.83,173.81,1.44005009]
[1729751041533,11.17866648,173.83,173.8,2.8794]
[1729751041733,11.17866648,173.83,173.81,1.44002646]
[1729751041932,11.17866648,173.83,173.8,3.97946]
[1729751042132,11.17866648,173.83,173.81,1.44002646]
[1729751042333,11.17866648,173.83,173.81,1.10006]
[1729751042835,62.16,173.85,173.83,2.8789]
[1729751043134,4.1,173.84,173.83,2.8789]
[1729751043329,4.1,173.84,173.83,3.97896]
[1729751047328,4.1,173.84,173.83,2.8789]
[1729751051237,62.16,173.85,173.84,2.8789]
[1729751051438,1.2902,173.91,173.84,2.8789]
[1729751051439,4.1,173.87,173.84,13.45006833]
[1729751051738,2.5106,173.91,173.86,7.07866648]
[1729751051739,4.1,173.88,173.86,7.07866648]
[1729751051941,4.1,173.88,173.87,4.31795654]
[1729751052130,4.1,173.88,173.87,2.8784]
[1729751052440,4.1,173.88,173.87,5.41795444]
[1729751052741,4.1,173.88,173.87,2.53955444]
[1729751053038,4.1,173.88,173.87,1.10006]
[1729751055737,14.42979267,174.24,173.87,1.10006]
[1729751055937,7.07866648,173.97,173.9,7.07866648]
[1729751056246,4.1,173.96,173.9,7.07866648]
[1729751056535,4.1,173.96,173.9,8.17872648]
[1729751056937,6.977,173.96,173.93,2.8774]
[1729751057137,6.977,173.96,173.9,8.17872648]
[1729751057739,6.977,173.96,173.9,1.10006]
[1729751058039,7.07866648,173.95,173.92,2.8775]
[1729751058244,1.1837,173.99,173.92,7.07866648]
[1729751058433,6.9766,173.98,173.92,7.07866648]
[1729751058741,14.05526648,173.98,173.93,7.07866648]
[1729751058932,14.05526648,173.98,173.94,2.8771]
[1729751059132,11.17866648,173.98,173.94,1.09984]
[1729751059333,11.17866648,173.98,173.91,3.9776]
[1729751059334,7.07866648,173.95,173.91,3.9776]
[1729751059536,4.1,173.94,173.91,1.15041]
[1729751060143,4.1,173.94,173.91,1.1]
[1729751060947,4.1,173.94,173.91,3.9776]
[1729751061534,7.07866648,173.92,173.91,1.1]
[1729751061940,7.07866648,173.93,173.91,1.1]
[1729751062644,4.1,173.94,173.91,1.1]
[1729751062839,11.17866648,173.94,173.91,1.1]
[1729751064348,11.17866648,173.94,173.92,2.8776]
[1729751064849,11.17866648,173.94,173.92,3.9776]
[1729751067143,4.1,173.94,173.92,3.9776]
[1729751084366,2.8768,173.97,173.93,2.8773]
[1729751084570,4.1,173.96,173.93,2.8773]
[1729751085663,6.9769,173.96,173.93,2.8773]
[1729751086370,7.07866648,173.95,173.92,1.1]
[1729751086572,9.95586648,173.95,173.92,3.9775]
[1729751086974,9.95586648,173.95,173.92,4.02781]
[1729751087471,9.95586648,173.95,173.92,3.9775]
[1729751092680,9.95576648,173.95,173.92,3.9776]
[1729751093087,4.1,173.96,173.95,2.8771]
[1729751093277,11.17866648,173.96,173.92,1.1]
[1729751095281,2.8771,173.95,173.92,3.9775]
[1729751096189,4.1,173.94,173.92,3.9775]
[1729751098786,6.9773,173.94,173.92,1.1]
[1729751099080,7.07866648,173.95,173.92,1.1]